bitfinex-derivatives/quotes_BNBF0:USTF0_20250524
["timestamp","ask_amount","ask_price","bid_price","bid_amount"]
[1748065074576,0.44158938,667.85,667.18,1.11969744]
[1748065074779,0.44158938,667.84,667.18,1.11969744]
[1748065074977,0.44158938,667.83,667.18,1.11969744]
[1748065075275,1.48749039,667.91,667.18,1.11969744]
[1748065075473,0.44154884,667.9,667.18,1.11969744]
[1748065075672,0.44154884,667.89,667.17,1.11969744]
[1748065075878,0.44154884,667.88,667.17,1.11969744]
[1748065076179,0.44154884,667.87,667.17,1.11969744]
[1748065076379,0.44151031,667.86,667.17,1.11969744]
[1748065076578,0.44151031,667.85,667.17,1.11969744]
[1748065076880,0.44151031,667.84,667.17,1.11969744]
[1748065077183,1.48749039,667.91,667.17,1.11969744]
[1748065077378,0.4414805,667.9,667.17,1.11969744]
[1748065077579,0.4414805,667.89,667.17,1.11969744]
[1748065077775,0.4414805,667.88,667.17,1.11969744]
[1748065078077,0.26053072,668.4,667.2,1.11969744]
[1748065078078,0.4414805,667.87,667.2,1.11969744]
[1748065078282,0.4414805,667.86,667.2,1.11969744]
[1748065078582,0.4414805,667.85,667.2,1.11969744]
[1748065078882,1.48749039,667.89,667.2,1.11969744]
[1748065079082,0.44143632,667.88,667.2,1.11969744]
[1748065079285,0.44143632,667.87,667.2,1.11969744]
[1748065079479,1.48749039,667.89,667.2,1.11969744]
[1748065079678,0.44139631,667.88,667.2,1.11969744]
[1748065079881,0.44139631,667.87,667.2,1.11969744]
[1748065080081,1.48749039,667.89,667.2,1.11969744]
[1748065080282,0.44139422,667.88,667.2,1.11969744]
[1748065080479,0.44139422,667.87,667.2,1.11969744]
[1748065080684,1.48749039,667.93,667.22,1.11969744]
[1748065080885,0.44139314,667.92,667.22,1.11969744]
[1748065081081,0.44139314,667.91,667.22,1.11969744]
[1748065081384,0.44139314,667.9,667.22,1.11969744]
[1748065081585,0.44139314,667.89,667.22,1.11969744]
[1748065081881,0.44139314,667.88,667.22,1.11969744]
[1748065082086,1.48749039,667.93,667.22,1.11969744]
[1748065082285,0.44136077,667.92,667.22,1.11969744]
[1748065082486,1.48749039,667.93,667.22,1.11969744]
[1748065082887,1.48749039,668.0,667.26,1.11969744]
[1748065083087,0.44131447,667.99,667.26,1.11969744]
[1748065083286,0.44131447,667.98,667.26,1.11969744]
[1748065083486,0.44131447,667.97,667.26,1.11969744]
[1748065083781,0.44131447,667.96,667.26,1.11969744]
[1748065083988,0.44131447,667.95,667.26,1.11969744]
[1748065084185,0.44131447,667.94,667.26,1.11969744]
[1748065084388,1.48749039,668.0,667.26,1.11969744]
[1748065084587,0.44098284,667.99,667.26,1.11969744]
[1748065084790,0.44096683,667.98,667.26,1.11969744]
[1748065084991,1.48749039,668.0,667.26,1.11969744]
[1748065085193,0.44096562,667.99,667.26,1.11969744]
[1748065085387,1.48749039,668.09,667.29,1.11969744]
[1748065085586,0.44096412,668.08,667.29,1.11969744]
[1748065085788,0.44096412,668.07,667.29,1.11969744]
[1748065085985,0.44096412,668.06,667.29,1.11969744]
[1748065086189,0.44096412,668.05,667.29,1.11969744]
[1748065086385,0.44096412,668.04,667.29,1.11969744]
[1748065086593,0.44096652,668.03,667.29,1.11969744]
[1748065086890,0.44096652,668.02,667.29,1.11969744]
[1748065087087,0.44096652,668.01,667.29,1.11969744]
[1748065087291,0.44096652,668.0,667.29,1.11969744]
[1748065087489,0.44096652,667.99,667.29,1.11969744]
[1748065087691,1.48749039,668.09,667.29,1.11969744]
[1748065087890,0.44100263,668.08,667.29,1.11969744]
[1748065088095,0.44100263,668.07,667.29,1.11969744]
[1748065088289,0.44100263,668.06,667.29,1.11969744]
[1748065088593,0.4410291,668.05,667.31,1.11969744]
[1748065088887,0.4410291,668.04,667.31,1.11969744]
[1748065089088,0.4410291,668.03,667.31,1.11969744]
[1748065089392,0.4410291,668.02,667.31,1.11969744]
[1748065089593,0.4410291,668.01,667.31,1.11969744]
[1748065089789,0.4410291,668.0,667.31,1.11969744]
[1748065089996,0.4410291,667.99,667.31,1.11969744]
[1748065090195,0.4410291,667.98,667.31,1.11969744]
[1748065090395,1.48749039,668.08,667.31,1.11969744]
[1748065090597,0.44109014,668.07,667.31,1.11969744]
[1748065090797,0.44109014,668.06,667.31,1.11969744]
[1748065090996,0.44109014,668.05,667.31,1.11969744]
[1748065091296,0.44109014,668.04,667.31,1.11969744]
[1748065091495,0.44109014,668.03,667.31,1.11969744]
[1748065091791,0.44109014,668.02,667.31,1.11969744]
[1748065091996,0.44109014,668.01,667.31,1.11969744]
[1748065092191,0.44109014,668.0,667.31,1.11969744]
[1748065092391,1.48749039,668.07,667.31,1.11969744]
[1748065092692,0.44110279,668.06,667.31,1.11969744]
[1748065092894,0.44110279,668.05,667.31,1.11969744]
[1748065093095,0.44110279,668.04,667.3,1.11969744]
[1748065093292,0.44110279,668.03,667.3,1.11969744]
[1748065093597,1.48749039,668.13,667.3,1.11969744]
[1748065093598,0.44110279,668.02,667.3,1.11969744]
[1748065093792,0.44110279,668.01,667.3,1.11969744]
[1748065093997,0.44110279,668.0,667.3,1.11969744]
[1748065094196,0.44110279,667.99,667.3,1.11969744]
[1748065094495,1.48749039,668.13,667.3,1.11969744]
[1748065094692,0.44111858,668.12,667.3,1.11969744]
[1748065094893,0.44111858,668.11,667.3,1.11969744]
[1748065095093,0.44111858,668.1,667.3,1.11969744]
[1748065095299,0.44111858,668.09,667.3,1.11969744]
[1748065095500,0.44111858,668.08,667.31,1.11969744]
[1748065095699,0.44111858,668.07,667.31,1.11969744]
[1748065095895,0.44111858,668.06,667.31,1.11969744]
[1748065096096,0.44111858,668.05,667.31,1.11969744]
[1748065096296,0.44111858,668.04,667.31,1.11969744]
[1748065096501,0.44111858,668.03,667.31,1.11969744]
[1748065096699,0.44111858,668.02,667.31,1.11969744]
[1748065096898,0.44111858,668.01,667.31,1.11969744]
[1748065097103,0.44111858,668.0,667.31,1.11969744]
[1748065097298,0.44111858,667.99,667.31,1.11969744]
[1748065097500,1.48749039,668.11,667.31,1.11969744]
[1748065097701,0.4410567,668.1,667.31,1.11969744]
[1748065097902,0.4410567,668.09,667.31,1.11969744]
[1748065098202,0.4410567,668.08,667.31,1.11969744]
[1748065098401,0.4410567,668.07,667.31,1.11969744]
[1748065098601,0.4410567,668.06,667.31,1.11969744]
[1748065098802,0.4410567,668.05,667.31,1.11969744]
[1748065099002,0.4410567,668.04,667.31,1.11969744]
[1748065099201,0.4410567,668.03,667.31,1.11969744]
[1748065099503,0.4410567,668.02,667.31,1.11969744]
[1748065099702,0.4410567,668.01,667.31,1.11969744]
[1748065099902,0.4410567,668.0,667.31,1.11969744]
[1748065100103,0.4410567,667.99,667.31,1.11969744]
[1748065100403,0.4410567,667.98,667.31,1.11969744]
[1748065100600,0.4410567,667.97,667.31,1.11969744]
[1748065100804,0.4410567,667.96,667.31,1.11969744]
[1748065101004,1.48749039,668.11,667.11,1.11969744]
[1748065101005,0.4410567,667.95,667.11,1.11969744]
[1748065101204,0.44105632,667.94,667.11,1.11969744]
[1748065101404,1.48749039,668.11,667.11,1.11969744]
[1748065101405,0.44105632,667.93,667.11,1.11969744]
[1748065101604,0.44105632,667.92,667.11,1.11969744]
[1748065101805,0.44105632,667.91,667.11,1.11969744]
[1748065102002,0.44105632,667.9,667.11,1.11969744]
[1748065102202,0.44105632,667.89,667.11,1.11969744]
[1748065102406,0.44105632,667.88,667.11,1.11969744]
[1748065102606,0.44105632,667.87,667.11,1.11969744]
[1748065102807,0.44105632,667.86,667.11,1.11969744]
[1748065103003,0.44105632,667.85,667.11,1.11969744]
[1748065103207,1.48749039,667.82,667.05,1.11969744]
[1748065103408,0.44105632,667.81,667.05,1.11969744]
[1748065105610,0.44105632,667.81,666.92,1.11969744]
[1748065105805,0.44105632,667.8,666.92,1.11969744]
[1748065106003,0.44105632,667.79,666.92,1.11969744]
[1748065106210,1.48749039,668.06,666.92,1.11969744]
[1748065106410,0.44077759,668.05,666.92,1.11969744]
[1748065106611,0.44077759,668.04,666.92,1.11969744]
[1748065106811,0.44077759,668.03,666.92,1.11969744]
[1748065107012,0.44077759,668.02,666.92,1.11969744]
[1748065107213,0.44077759,668.01,666.92,1.11969744]
[1748065107413,0.44077759,668.0,666.92,1.11969744]
[1748065107717,0.44077759,667.99,666.92,1.11969744]
[1748065108011,0.26053072,668.4,666.29,3.42407985]
[1748065108012,0.44077759,667.98,666.97,1.11969744]
[1748065108210,0.44077759,667.97,666.97,1.11969744]
[1748065108412,0.44074775,667.96,666.97,1.11969744]
[1748065108612,0.44074775,667.95,666.97,1.11969744]
[1748065108809,0.44074775,667.94,666.97,1.11969744]
[1748065109014,0.44074775,667.93,666.97,1.11969744]
[1748065109214,0.44074775,667.92,666.97,1.11969744]
[1748065109415,0.44074775,667.91,666.97,1.11969744]
[1748065109614,0.44074775,667.9,666.97,1.11969744]
[1748065109809,0.44074775,667.89,666.97,1.11969744]
[1748065110014,0.44074775,667.88,666.97,1.11969744]
[1748065110214,0.4407408,667.87,666.97,1.11969744]
[1748065110414,0.4407408,667.86,666.97,1.11969744]
[1748065110616,0.4407408,667.85,666.96,1.11969744]
[1748065110814,0.4407408,667.84,666.96,1.11969744]
[1748065111011,0.4407408,667.83,666.96,1.11969744]
[1748065111213,0.4407408,667.82,666.96,1.11969744]
[1748065111415,0.4407408,667.81,666.96,1.11969744]
[1748065111611,1.48749039,668.12,666.96,1.11969744]
[1748065111817,0.44074349,668.11,666.96,1.11969744]
[1748065112018,0.44073945,668.1,666.96,1.11969744]
[1748065112316,0.44073945,668.09,666.96,1.11969744]
[1748065112511,0.44073945,668.08,666.96,1.11969744]
[1748065112715,0.44073945,668.07,666.96,1.11969744]
[1748065112915,0.44073945,668.06,666.97,1.11969744]
[1748065113116,0.44073945,668.05,666.97,1.11969744]
[1748065113315,0.44073945,668.04,666.97,1.11969744]
[1748065113513,0.44073945,668.03,666.97,1.11969744]
[1748065113712,0.44075332,668.02,666.97,1.11969744]
[1748065113916,0.44075332,668.01,666.97,1.11969744]
[1748065114116,0.44075332,668.0,666.97,1.11969744]
[1748065114313,0.44075332,667.99,666.97,1.11969744]
[1748065114514,0.44075332,667.98,666.97,1.11969744]
[1748065114716,0.44075332,667.97,666.97,1.11969744]
[1748065114915,0.44075332,667.96,666.97,1.11969744]
[1748065115115,0.44075332,667.95,667.0,1.11969744]
[1748065115319,0.44075332,667.94,667.0,1.11969744]
[1748065115514,0.44075332,667.93,667.0,1.11969744]
[1748065115717,0.44075332,667.92,667.0,1.11969744]
[1748065115919,0.44075332,667.91,667.0,1.11969744]
[1748065116119,0.44075332,667.9,667.0,1.11969744]
[1748065116319,0.44075332,667.89,667.0,1.11969744]
[1748065116522,0.44075332,667.88,667.0,1.11969744]
[1748065116820,0.44075332,667.87,667.0,1.11969744]
[1748065117018,0.44075332,667.86,667.0,1.11969744]
[1748065117214,0.44075332,667.85,667.0,1.11969744]
[1748065117515,0.44088811,667.84,667.0,1.11969744]
[1748065117718,0.29934742,668.12,667.0,1.11969744]
[1748065118014,1.48749039,668.03,667.08,1.11969744]
[1748065118218,0.44089976,668.02,667.08,1.11969744]
[1748065118421,0.44089976,668.01,667.08,1.11969744]
[1748065118719,0.44089976,668.0,667.08,1.11969744]
[1748065118916,0.44089976,667.99,667.08,1.11969744]
[1748065119117,0.44089976,667.98,667.08,1.11969744]
[1748065119320,0.44098756,667.97,667.08,1.11969744]
[1748065119521,0.44098756,667.96,667.08,1.11969744]
[1748065119820,0.44098756,667.95,667.08,1.11969744]
[1748065120120,0.44098756,667.94,667.08,1.11969744]
[1748065120320,0.44098756,667.93,667.08,1.11969744]
[1748065120520,0.44098756,667.92,667.08,1.11969744]
[1748065120721,0.44098756,667.91,667.08,1.11969744]
[1748065120917,0.44098756,667.9,667.08,1.11969744]
[1748065121116,0.44105339,667.89,667.09,1.11969744]
[1748065121314,0.44105339,667.88,667.09,1.11969744]
[1748065121519,0.44105339,667.87,667.09,1.11969744]
[1748065121814,0.44105339,667.86,667.09,1.11969744]
[1748065122019,0.44105339,667.85,667.09,1.11969744]
[1748065122216,0.44105339,667.84,667.09,1.11969744]
[1748065122420,0.44105339,667.83,667.09,1.11969744]
[1748065122621,0.44105339,667.82,667.09,1.11969744]
[1748065122818,0.441193,667.81,667.09,1.11969744]
[1748065123018,0.441193,667.8,667.05,1.11969744]
[1748065123221,0.441193,667.79,667.05,1.11969744]
[1748065123422,0.441193,667.78,667.05,1.11969744]
[1748065123621,0.441193,667.77,667.05,1.11969744]
[1748065123918,1.48749039,667.96,667.05,1.11969744]
[1748065124218,0.44118076,667.95,667.05,1.11969744]
[1748065124420,0.44118076,667.94,667.05,1.11969744]
[1748065124722,0.44118076,667.93,667.05,1.11969744]
[1748065124922,0.44118076,667.92,667.05,1.11969744]
[1748065125123,0.44118076,667.91,667.05,1.11969744]
[1748065125324,0.44118076,667.9,667.05,1.11969744]
[1748065125524,0.44118076,667.89,667.05,1.11969744]
[1748065125724,0.44118076,667.88,667.05,1.11969744]
[1748065125925,0.44118076,667.87,667.05,1.11969744]
[1748065126126,0.44118076,667.86,667.05,1.11969744]
[1748065126326,0.44118076,667.85,667.05,1.11969744]
[1748065126621,0.44114422,667.84,667.05,1.11969744]
[1748065126824,0.44114422,667.83,667.05,1.11969744]
[1748065127020,0.44114422,667.82,667.05,1.11969744]
[1748065127226,0.44114422,667.81,667.05,1.11969744]
[1748065127526,0.44114422,667.8,667.05,1.11969744]
[1748065127727,0.44114422,667.79,667.05,1.11969744]
[1748065127925,0.44114422,667.78,667.05,1.11969744]
[1748065128127,0.44114422,667.77,667.05,1.11969744]
[1748065128327,1.48749039,667.88,667.09,1.11969744]
[1748065128522,0.44112395,667.87,667.09,1.11969744]
[1748065128822,0.44112395,667.86,667.09,1.11969744]
[1748065129024,0.44112395,667.85,667.09,1.11969744]
[1748065129224,0.44112395,667.84,667.09,1.11969744]
[1748065129425,0.44112395,667.83,667.09,1.11969744]
[1748065129626,0.44112395,667.82,667.09,1.11969744]
[1748065129822,0.44112395,667.81,667.09,1.11969744]
[1748065130026,0.44112395,667.8,667.09,1.11969744]
[1748065130230,0.44109342,667.79,667.09,1.11969744]
[1748065130428,0.44109342,667.78,667.09,1.11969744]
[1748065130626,0.44109342,667.77,667.09,1.11969744]
[1748065130826,1.48749039,667.88,667.09,1.11969744]
[1748065131123,0.44109582,667.87,667.09,1.11969744]
[1748065131323,0.44109582,667.86,667.09,1.11969744]
[1748065131526,0.44109582,667.85,667.09,1.11969744]
[1748065131724,0.44109582,667.84,667.09,1.11969744]
[1748065131927,0.44108211,667.83,667.09,1.11969744]
[1748065132128,1.48749039,667.87,667.09,1.11969744]
[1748065132129,0.44108211,667.82,667.09,1.11969744]
[1748065132325,0.44108211,667.81,667.09,1.11969744]
[1748065132524,0.44108211,667.8,667.09,1.11969744]
[1748065132727,0.44108211,667.79,667.09,1.11969744]
[1748065132926,0.44108211,667.78,667.09,1.11969744]
[1748065133130,0.44108211,667.77,667.09,1.11969744]
[1748065133331,1.48749039,667.82,667.11,1.11969744]
[1748065133531,0.44100834,667.81,667.11,1.11969744]
[1748065133731,0.44100839,667.8,667.11,1.11969744]
[1748065133931,0.44100839,667.79,667.11,1.11969744]
[1748065134232,0.44100839,667.78,667.11,1.11969744]
[1748065134432,0.44100839,667.77,667.11,1.11969744]
[1748065134634,0.44100839,667.76,667.11,1.11969744]
[1748065134835,0.44100839,667.75,667.11,1.11969744]
[1748065135038,0.44100839,667.74,667.11,1.11969744]
[1748065135237,0.44100839,667.73,667.11,1.11969744]
[1748065135431,0.44100839,667.72,667.11,1.11969744]
[1748065135633,0.44100839,667.71,667.04,1.11969744]
[1748065135834,0.44100839,667.7,667.04,1.11969744]
[1748065136036,1.48749039,667.76,667.04,1.11969744]
[1748065136237,0.44099366,667.75,667.04,1.11969744]
[1748065136431,0.44099366,667.74,667.04,1.11969744]
[1748065136634,0.44099366,667.73,667.04,1.11969744]
[1748065136930,0.44099366,667.72,667.04,1.11969744]
[1748065137136,0.44099366,667.71,667.04,1.11969744]
[1748065137332,1.48749039,667.76,667.04,1.11969744]
[1748065137538,1.92841481,667.75,667.03,1.11969744]
[1748065137733,0.44092442,667.74,667.03,1.11969744]
[1748065139733,0.44092442,667.73,667.03,1.11969744]
[1748065139936,0.44092442,667.72,667.03,1.11969744]
[1748065140138,1.48749039,667.77,667.03,1.11969744]
[1748065140434,0.44084332,667.76,667.03,1.11969744]
[1748065140634,0.44084332,667.75,667.03,1.11969744]
[1748065140839,0.44084332,667.74,667.03,1.11969744]
[1748065141041,0.44084332,667.73,667.03,1.11969744]
[1748065141239,0.44084304,667.72,667.03,1.11969744]
[1748065141439,1.48749039,667.77,667.03,1.11969744]
[1748065141640,0.44084156,667.76,667.04,1.11969744]
[1748065141836,0.44084156,667.75,667.04,1.11969744]
[1748065142036,1.48749039,667.77,667.04,1.11969744]
[1748065142241,0.44081884,667.76,667.04,1.11969744]
[1748065142437,0.44081884,667.75,667.04,1.11969744]
[1748065142636,0.44081884,667.74,667.04,1.11969744]
[1748065142841,0.44081884,667.73,667.04,1.11969744]
[1748065143037,0.44081884,667.72,667.04,1.11969744]
[1748065143241,0.44081884,667.71,667.04,1.11969744]
[1748065143436,1.48749039,667.77,667.04,1.11969744]
[1748065143637,0.44081134,667.76,667.04,1.11969744]
[1748065143939,0.44081134,667.75,667.04,1.11969744]
[1748065144137,0.44081134,667.74,667.04,1.11969744]
[1748065144336,0.44081134,667.73,666.97,1.11969744]
[1748065144539,0.44081134,667.72,666.97,1.11969744]
[1748065144742,1.48749039,667.82,666.97,1.11969744]
[1748065144743,0.44081134,667.71,666.97,1.11969744]
[1748065144942,0.44081134,667.7,666.97,1.11969744]
[1748065145146,1.48749039,667.82,666.97,1.11969744]
[1748065145344,0.44080788,667.81,666.97,1.11969744]
[1748065145544,0.44080788,667.8,666.97,1.11969744]
[1748065145743,0.44080788,667.79,666.97,1.11969744]
[1748065145944,0.44080788,667.78,666.97,1.11969744]
[1748065146146,0.44080788,667.77,666.97,1.11969744]
[1748065146345,0.44080788,667.76,666.97,1.11969744]
[1748065146543,0.44080788,667.75,666.97,1.11969744]
[1748065146741,0.44080788,667.74,666.97,1.11969744]
[1748065146942,0.44080788,667.73,666.97,1.11969744]
[1748065147144,0.44080788,667.72,666.97,1.11969744]
[1748065147342,0.44080788,667.71,666.97,1.11969744]
[1748065147646,0.44080788,667.7,666.97,1.11969744]
[1748065147843,1.48749039,667.82,666.97,1.11969744]
[1748065148142,0.44085764,667.81,666.97,1.11969744]
[1748065148345,0.44085764,667.8,666.97,1.11969744]
[1748065148543,0.44085764,667.79,666.97,1.11969744]
[1748065148842,0.44085764,667.78,666.97,1.11969744]
[1748065149143,0.44085764,667.77,666.97,1.11969744]
[1748065149346,0.44093177,667.76,666.97,1.11969744]
[1748065149642,0.44093177,667.75,666.98,1.11969744]
[1748065149845,0.44093177,667.74,666.98,1.11969744]
[1748065150046,0.44093177,667.73,666.98,1.11969744]
[1748065150246,0.44093177,667.72,666.98,1.11969744]
[1748065150444,0.44093177,667.71,666.98,1.11969744]
[1748065150643,0.44093177,667.7,666.98,1.11969744]
[1748065150847,0.44093177,667.69,666.98,1.11969744]
[1748065151047,1.48749039,667.81,666.98,1.11969744]
[1748065151244,0.44097112,667.8,666.98,1.11969744]
[1748065151443,0.44097112,667.79,666.98,1.11969744]
[1748065151650,0.44097112,667.78,667.01,1.11969744]
[1748065151843,0.44097112,667.77,667.01,1.11969744]
[1748065152144,0.44097112,667.76,667.01,1.11969744]
[1748065152344,0.44097112,667.75,667.01,1.11969744]
[1748065152550,0.44097112,667.74,667.01,1.11969744]
[1748065152751,0.44097112,667.73,667.01,1.11969744]
[1748065152952,0.44110326,667.72,667.01,1.11969744]
[1748065153151,0.44110159,667.71,667.01,1.11969744]
[1748065153351,0.44110159,667.7,667.01,1.11969744]
[1748065153545,1.48749039,667.82,667.01,1.11969744]
[1748065153750,0.44119041,667.81,667.01,1.11969744]
[1748065153953,0.44119041,667.8,667.01,1.11969744]
[1748065154249,0.44119041,667.79,667.01,1.11969744]
[1748065154451,1.48749039,667.73,667.07,1.11969744]
[1748065154647,0.44119041,667.72,667.07,1.11969744]
[1748065154953,0.44128656,667.71,667.07,1.11969744]
[1748065155148,1.48749039,667.73,667.07,1.11969744]
[1748065155149,0.44128656,667.7,667.07,1.11969744]
[1748065155451,0.44128656,667.69,667.07,1.11969744]
[1748065155652,0.44128656,667.68,667.07,1.11969744]
[1748065155849,1.48749039,667.73,667.07,1.11969744]
[1748065156049,0.44139632,667.72,667.07,1.11969744]
[1748065156248,0.44139632,667.71,667.07,1.11969744]
[1748065156452,0.4415007,667.7,667.07,1.11969744]
[1748065156653,1.48749039,667.73,667.07,1.11969744]
[1748065156955,0.44149088,667.72,667.07,1.11969744]
[1748065157159,1.48749039,667.73,667.07,1.11969744]
[1748065157355,0.44149008,667.72,667.07,1.11969744]
[1748065157555,0.44149008,667.71,667.12,1.11969744]
[1748065157854,1.48749039,667.79,667.12,1.11969744]
[1748065158054,0.44164093,667.78,667.12,1.11969744]
[1748065158246,0.44164093,667.77,667.12,1.11969744]
[1748065158449,1.48749039,667.79,667.12,1.11969744]
[1748065158650,0.44168844,667.78,667.12,1.11969744]
[1748065158852,0.44168844,667.77,667.12,1.11969744]
[1748065159055,0.44168844,667.76,667.12,1.11969744]
[1748065159248,0.29934742,668.12,667.13,1.11969744]
[1748065159249,0.44168844,667.75,667.13,1.11969744]
[1748065159452,0.44168844,667.74,667.13,1.11969744]
[1748065159650,0.44168844,667.73,667.13,1.11969744]
[1748065159950,1.48749039,667.85,667.13,1.11969744]
[1748065160154,0.44171758,667.84,667.13,1.11969744]
[1748065160455,0.44171669,667.83,667.13,1.11969744]
[1748065160654,0.44171669,667.82,667.13,1.11969744]
[1748065160851,0.44171669,667.81,667.13,1.11969744]
[1748065161051,0.44171669,667.8,667.13,1.11969744]
[1748065161256,0.44171669,667.79,667.14,1.11969744]
[1748065161452,0.44171669,667.78,667.14,1.11969744]
[1748065161761,0.44171669,667.77,667.14,1.11969744]
[1748065161955,0.44171669,667.76,667.14,1.11969744]
[1748065162154,0.44171669,667.75,667.14,1.11969744]
[1748065162355,0.44171669,667.74,667.14,1.11969744]
[1748065162559,0.44171669,667.73,667.14,1.11969744]
[1748065162759,0.44171669,667.72,667.14,1.11969744]
[1748065163056,0.44180721,667.71,667.14,1.11969744]
[1748065163258,1.48749039,667.84,667.13,1.11969744]
[1748065163559,0.44180817,667.83,667.13,1.11969744]
[1748065163759,0.44180817,667.82,667.13,1.11969744]
[1748065163961,0.44181567,667.81,667.13,1.11969744]
[1748065164154,0.44181567,667.8,667.13,1.11969744]
[1748065164358,0.44181567,667.79,667.13,1.11969744]
[1748065164561,0.44181567,667.78,667.13,1.11969744]
[1748065164759,0.44181567,667.77,667.13,1.11969744]
[1748065164952,0.44181567,667.76,667.13,1.11969744]
[1748065165157,0.44181567,667.75,667.13,1.11969744]
[1748065165358,0.44181567,667.74,667.13,1.11969744]
[1748065165654,0.44182139,667.73,667.13,1.11969744]
[1748065165854,0.44182139,667.72,667.13,1.11969744]
[1748065166059,0.44182139,667.71,667.13,1.11969744]
[1748065166260,1.48749039,667.84,667.13,1.11969744]
[1748065166561,0.44181781,667.83,667.13,1.11969744]
[1748065166859,0.44181781,667.82,667.13,1.11969744]
[1748065167058,0.44181781,667.81,667.13,1.11969744]
[1748065167257,0.44181781,667.8,667.13,1.11969744]
[1748065167461,0.44181781,667.79,667.14,1.11969744]
[1748065167757,0.44181781,667.78,667.14,1.11969744]
[1748065167960,0.44181781,667.77,667.14,1.11969744]
[1748065168163,0.44181781,667.76,667.14,1.11969744]
[1748065168460,0.44181781,667.75,667.14,1.11969744]
[1748065168655,0.44181781,667.74,667.14,1.11969744]
[1748065168860,0.44181781,667.73,667.14,1.11969744]
[1748065169061,0.44181781,667.72,667.14,1.11969744]
[1748065169254,0.44181781,667.71,667.14,1.11969744]
[1748065169460,1.48749039,667.83,667.14,1.11969744]
[1748065169654,0.44183756,667.82,667.14,1.11969744]
[1748065169859,0.44183756,667.81,667.14,1.11969744]
[1748065170059,1.48749039,667.77,667.17,1.11969744]
[1748065170260,0.44183756,667.76,667.17,1.11969744]
[1748065170558,0.44183756,667.75,667.17,1.11969744]
[1748065170756,0.44183756,667.74,667.17,1.11969744]
[1748065170960,0.44183756,667.73,667.17,1.11969744]
[1748065171160,0.44183756,667.72,667.17,1.11969744]
[1748065171361,0.44183756,667.71,667.17,1.11969744]
[1748065171562,1.48749039,667.77,667.17,1.11969744]
[1748065171862,0.44184169,667.76,667.17,1.11969744]
[1748065172062,0.44184169,667.75,667.17,1.11969744]
[1748065172263,0.44184169,667.74,667.17,1.11969744]
[1748065172562,0.44184169,667.73,667.17,1.11969744]
[1748065172762,0.44184169,667.73,667.06,1.36952527]
[1748065172763,0.44184169,667.72,667.16,1.11969744]
[1748065172963,0.44184694,667.71,667.16,1.11969744]
[1748065173163,1.48749039,667.8,667.16,1.11969744]
[1748065173364,0.44184694,667.79,667.16,1.11969744]
[1748065173564,0.44184694,667.78,667.16,1.11969744]
[1748065173764,0.44184694,667.77,667.16,1.11969744]
[1748065174064,1.48749039,667.8,667.16,1.11969744]
[1748065174065,0.44184694,667.76,667.16,1.11969744]
[1748065174264,0.44184694,667.75,667.16,1.11969744]
[1748065174458,0.44184694,667.74,667.16,1.11969744]
[1748065174659,0.44184694,667.73,667.16,1.11969744]
[1748065174860,0.44188053,667.72,667.16,1.11969744]
[1748065175160,1.48749039,667.79,667.16,1.11969744]
[1748065175360,0.4418711,667.78,667.16,1.11969744]
[1748065175566,0.4418711,667.77,667.16,1.11969744]
[1748065175768,0.4418711,667.76,667.16,1.11969744]
[1748065175967,0.4418711,667.75,667.16,1.11969744]
[1748065176162,0.4418711,667.74,667.16,1.11969744]
[1748065176366,0.4418711,667.73,667.16,1.11969744]
[1748065176563,0.44190208,667.72,667.16,1.11969744]
[1748065176767,1.48749039,667.79,667.16,1.11969744]
[1748065177069,0.44190085,667.78,667.17,1.11969744]
[1748065177265,0.44190085,667.77,667.17,1.11969744]
[1748065177467,0.44190085,667.76,667.17,1.11969744]
[1748065177766,0.44190085,667.75,667.17,1.11969744]
[1748065177969,0.44190085,667.74,667.17,1.11969744]
[1748065178265,0.44190085,667.73,667.17,1.11969744]
[1748065178471,1.48749039,667.82,667.18,1.11969744]
[1748065178671,0.44193045,667.81,667.18,1.11969744]
[1748065178967,0.44193045,667.8,667.18,1.11969744]
[1748065179173,1.48749039,667.82,667.18,1.11969744]
[1748065179468,0.44186622,667.81,667.18,1.11969744]
[1748065179671,1.48749039,667.82,667.18,1.11969744]
[1748065179866,0.44181707,667.81,667.18,1.11969744]
[1748065180069,1.48749039,667.82,667.18,1.11969744]
[1748065180269,0.44182461,667.81,667.18,1.11969744]
[1748065180465,1.48749039,667.82,667.18,1.11969744]
[1748065180667,0.44178598,667.81,667.18,1.11969744]
[1748065180965,1.48749039,667.82,667.18,1.11969744]
[1748065181172,0.44178058,667.81,667.24,1.11969744]
[1748065181370,1.48749039,667.93,667.24,1.11969744]
[1748065181570,0.4417332,667.92,667.24,1.11969744]
[1748065181767,0.4417332,667.91,667.24,1.11969744]
[1748065181971,0.4417332,667.9,667.24,1.11969744]
[1748065182171,0.4417332,667.89,667.24,1.11969744]
[1748065182371,0.4417332,667.88,667.24,1.11969744]
[1748065182573,0.4417332,667.87,667.24,1.11969744]
[1748065182773,0.4417332,667.86,667.24,1.11969744]
[1748065182973,0.4417332,667.85,667.24,1.11969744]
[1748065183174,0.4417332,667.84,667.24,1.11969744]
[1748065183474,1.48749039,667.95,667.23,1.11969744]
[1748065183676,0.44161555,667.94,667.23,1.11969744]
[1748065183872,0.44161555,667.93,667.23,1.11969744]